fUST/lending_fUST_20250709
["ID","MTS","AMOUNT","RATE_DAILY","PERIOD"]
[370485079,1752040239412,-12500.0,0.00021917,2]
[370485080,1752040239424,-460.0,0.00021917,2]
[370485081,1752040239435,-12500.0,0.00021917,2]
[370485082,1752040239446,-460.0,0.00021917,2]
[370485083,1752040239457,-12500.0,0.00021917,2]
[370485084,1752040239468,-500.0,0.00021917,2]
[370485085,1752040239478,-500.0,0.00021917,2]
[370485086,1752040239489,-500.0,0.00021917,2]
[370485087,1752040239500,-500.0,0.00021917,2]
[370485088,1752040239511,-500.0,0.00021917,2]
[370485089,1752040239522,-500.0,0.00021917,2]
[370485090,1752040239533,-500.0,0.00021917,2]
[370485091,1752040239544,-500.0,0.00021917,2]
[370485092,1752040239556,-500.0,0.00021917,2]
[370485093,1752040239566,-500.0,0.00021917,2]
[370485094,1752040239577,-463.47153882,0.00021917,2]
[370485095,1752040239589,-1371.06,0.00021917,2]
[370485096,1752040239601,-781.1,0.00021917,2]
[370485097,1752040239611,-145.05121671,0.00021917,2]
[370485098,1752040239673,-624.20491612,0.00021917,2]
[370485099,1752040239687,-106.31386717,0.00021917,2]
[370485100,1752040239699,-507.12,0.00021917,2]
[370485101,1752040239711,-955.37,0.00021917,2]
[370485102,1752040239723,-606.93,0.00021917,2]
[370485103,1752040239735,-383.19483993,0.00021917,2]
[370485125,1752040240458,-460.0,0.00019178,2]
[370485126,1752040240471,-1560.65807544,0.00020711,10]
[370485131,1752040240573,-2054.01192456,0.00020711,10]
[370485133,1752040240586,-2332.13717293,0.000209,4]
[370485135,1752040240599,-2332.13717277,0.00021072,4]
[370485137,1752040240610,-2332.13717277,0.00021245,4]
[370485139,1752040240620,-2332.13717277,0.00021417,5]
[370485141,1752040240630,-2332.13717277,0.0002159,5]
[370485143,1752040240641,-2332.13717277,0.00021762,5]
[370485145,1752040240650,-76.80516007,0.00021917,2]
[370485147,1752040240660,-460.0,0.00021917,2]
[370485149,1752040240670,-1323.68,0.00021917,2]
[370485151,1752040240679,-460.0,0.00021917,2]
[370485153,1752040240689,-460.0,0.00021917,2]
[370485155,1752040240700,-1710.39,0.00021917,2]
[370485156,1752040240710,-402.25486569,0.00021918,7]
[370485157,1752040240722,-267.27606434,0.00021918,2]
[370485158,1752040240732,-329.73250744,0.00021918,2]
[370485159,1752040240742,-315.492472,0.00021978,2]
[370485160,1752040240752,-15517.07947574,0.00022,2]
[370485161,1752040240761,-501.0,0.00022,2]
[370485162,1752040240771,-500.0,0.00022027,2]
[370485163,1752040240781,-215.0738,0.00022046,2]
[370485164,1752040240791,-967.0,0.0002206,2]
[370485165,1752040240995,-648.015,0.0002206,2]
[370485166,1752040241009,-2153.0,0.0002206,2]
[370485167,1752040241019,-407.0,0.0002206,2]
[370485168,1752040241028,-408.797,0.0002206,2]
[370485169,1752040241038,-177.4820604,0.00022164,2]
[370485170,1752040241047,-460.0,0.00022191,2]
[370485171,1752040241057,-460.0,0.00022191,2]
[370485172,1752040241066,-1371.06,0.00022191,2]
[370485173,1752040241075,-781.1,0.00022191,2]
[370485174,1752040241085,-875.57,0.00022191,2]
[370485175,1752040241094,-507.12,0.00022191,2]
[370485176,1752040241103,-955.37,0.00022191,2]
[370485177,1752040241113,-606.93,0.00022191,2]
[370485178,1752040241122,-460.0,0.00022191,2]
[370485179,1752040241131,-460.0,0.00022191,2]
[370485180,1752040241141,-1323.68,0.00022191,2]
[370485181,1752040241154,-460.0,0.00022191,2]
[370485182,1752040241163,-460.0,0.00022191,2]
[370485183,1752040241173,-1710.39,0.00022191,2]
[370485184,1752040241182,-151.0,0.000222,8]
[370485185,1752040241193,-3749.98,0.000222,7]
[370485186,1752040241202,-500.0,0.00022209,2]
[370485187,1752040241212,-500.0,0.00022209,2]
[370485188,1752040241223,-500.0,0.00022209,2]
[370485189,1752040241232,-500.0,0.00022209,2]
[370485190,1752040241242,-500.54555319,0.00022209,2]
[370485191,1752040241251,-600.0,0.00022209,2]
[370485192,1752040241260,-500.0,0.00022209,2]
[370485193,1752040241270,-407.90684554,0.00022209,2]
[370485194,1752040241279,-500.0,0.00022209,2]
[370485195,1752040241289,-161.26899794,0.00022209,2]
[370485196,1752040241298,-500.0,0.00022209,2]
[370485197,1752040241307,-309.90022445,0.00022209,2]
[370485198,1752040241317,-500.0,0.00022209,2]
[370485199,1752040241326,-500.0,0.00022209,2]
[370485200,1752040241336,-500.0,0.00022209,2]
[370485201,1752040241345,-501.24271993,0.00022209,2]
[370485202,1752040241355,-500.0,0.00022209,2]
[370485203,1752040241364,-258.82734607,0.00022209,2]
[370485204,1752040241373,-500.0,0.00022209,2]
[370485205,1752040241383,-500.0,0.00022209,2]
[370485206,1752040241392,-160.27260877,0.00022209,2]
[370485207,1752040241402,-500.61000431,0.00022209,2]
[370485208,1752040241411,-500.0,0.00022209,2]
[370485209,1752040241420,-500.0,0.00022209,2]
[370485210,1752040241429,-500.0,0.00022209,2]
[370485211,1752040241438,-1095.90339273,0.00022219,2]
[370485212,1752040241447,-514.3723598,0.00022227,2]
[370485213,1752040241457,-348.82753998,0.00022227,2]
[370485214,1752040241467,-695.511782,0.00022274,2]
[370485215,1752040241476,-1846.05360819,0.00022293,2]
[370485216,1752040241485,-460.0,0.00022465,2]
[370485217,1752040241494,-460.0,0.00022465,2]
[370485218,1752040241503,-1371.06,0.00022465,2]
[370485219,1752040241513,-781.1,0.00022465,2]
[370485220,1752040241523,-875.57,0.00022465,2]
[370485221,1752040241532,-507.12,0.00022465,2]
[370485222,1752040241542,-955.37,0.00022465,2]
[370485223,1752040241551,-606.93,0.00022465,2]
[370485224,1752040241561,-281.38009499,0.00022465,2]
[370485225,1752040241571,-460.0,0.00022465,2]
[370485226,1752040241580,-1323.68,0.00022465,2]
[370485227,1752040241590,-460.0,0.00022465,2]
[370485228,1752040241599,-460.0,0.00022465,2]
[370485229,1752040241609,-1710.39,0.00022465,2]
[370485230,1752040241619,-2200.0,0.00022527,2]
[370485231,1752040241628,-159.547108,0.00022548,2]
[370485232,1752040241637,-297.1394394,0.00022548,2]
[370485233,1752040241647,-160.6351784,0.00022548,2]
[370485234,1752040241656,-177.8250511,0.00022548,2]
[370485235,1752040241666,-1152.0737126,0.00022548,2]
[370485236,1752040241676,-153.0,0.00022548,2]
[370485237,1752040241687,-177.8250511,0.00022548,2]
[370485238,1752040241697,-153.0,0.00022548,2]
[370485239,1752040241707,-159.547108,0.00022548,2]
[370485240,1752040241717,-177.8250511,0.00022548,2]
[370485241,1752040241728,-159.547108,0.00022548,2]
[370485242,1752040241740,-177.8250511,0.00022548,2]
[370485243,1752040241753,-159.547108,0.00022548,2]
[370485244,1752040241763,-153.0,0.00022548,2]
[370485245,1752040241773,-153.0,0.00022548,2]
[370485246,1752040241785,-159.547108,0.00022548,2]
[370485247,1752040241797,-318.282404,0.00022548,2]
[370485248,1752040241807,-153.0,0.00022548,2]
[370485249,1752040241817,-207.0,0.0002257,5]
[370485250,1752040241826,-151.0,0.000226,6]
[370485251,1752040241835,-200.3079114,0.00022603,2]
[370485252,1752040241849,-5.8410276,0.00022603,2]
[370485253,1752040241858,-1171.67448904,0.00022677,2]
[370485336,1752040243105,-460.0,0.00019178,2]
[370485339,1752040243114,-460.0,0.00019452,2]
[370485342,1752040243123,-460.0,0.00019452,2]
[370485344,1752040243132,-394.685808,0.00019726,2]
[370485346,1752040243147,-65.314192,0.00019726,2]
[370485348,1752040243157,-460.0,0.00019726,2]
[370485350,1752040243166,-151.18131976,0.00019999,2]
[370485354,1752040243181,-18.78727162,0.00019999,2]
[370485357,1752040243191,-500.0,0.00019999,2]
[370485360,1752040243200,-500.0,0.00019999,2]
[370485363,1752040243209,-460.0,0.0002,2]
[370485365,1752040243219,-460.0,0.00020273,2]
[370485368,1752040243231,-460.0,0.00020547,2]
[370485369,1752040243241,-534.05724993,0.00020821,2]
[370485370,1752040243250,-794.2402586,0.00021934,6]
[370485371,1752040243262,-482.46297373,0.00021934,6]
[370485372,1752040243274,-1055.43394044,0.00021934,6]
[370485373,1752040243284,-2332.13717277,0.00022107,6]
[370485375,1752040243294,-2332.13717277,0.00022279,6]
[370485376,1752040243304,-2332.13717277,0.00022452,7]
[370485377,1752040243314,-2332.13717277,0.00022624,7]
[370485378,1752040243324,-5482.64017931,0.00022677,2]
[370485420,1752040245990,-491.37764167,0.00019999,2]
[370485422,1752040245999,-210.68900161,0.00019999,2]
[370485424,1752040246012,-289.31099839,0.00019999,2]
[370485426,1752040246021,-480.87475689,0.00019999,2]
[370485428,1752040246033,-19.12524311,0.00019999,2]
[370485430,1752040246042,-500.0,0.00019999,2]
[370485432,1752040246051,-500.0,0.00019999,2]
[370485434,1752040246061,-500.0,0.00019999,2]
[370485436,1752040246071,-460.0,0.0002,2]
[370485438,1752040246080,-460.0,0.00020273,2]
[370485440,1752040246089,-460.0,0.00020547,2]
[370485442,1752040246099,-460.0,0.00020821,2]
[370485444,1752040246108,-460.0,0.00021095,2]
[370485446,1752040246117,-460.0,0.00021369,2]
[370485448,1752040246127,-460.0,0.00021643,2]
[370485450,1752040246136,-460.0,0.00021917,2]
[370485452,1752040246146,-500.0,0.00021918,2]
[370485454,1752040246157,-500.0,0.00021918,2]
[370485456,1752040246167,-500.0,0.00021918,2]
[370485458,1752040246181,-500.0,0.00021918,2]
[370485460,1752040246191,-500.0,0.00021918,2]
[370485462,1752040246200,-500.0,0.00021918,2]
[370485463,1752040246209,-500.0,0.00021918,2]
[370485465,1752040246220,-500.0,0.00021918,2]
[370485466,1752040246230,-500.0,0.00021918,2]
[370485467,1752040246240,-559.22710839,0.00021918,2]
[370485469,1752040246249,-150.063,0.00022152,2]
[370485471,1752040246259,-273.511,0.00022152,2]
[370485473,1752040246268,-460.0,0.00022191,2]
[370485476,1752040246279,-13346.94827508,0.00022677,2]
[370485477,1752040246288,-151.6623917,0.00022677,2]
[370485480,1752040246299,-2048.3376083,0.00022677,2]
[370485482,1752040246309,-500.0,0.00022733,2]
[370485484,1752040246319,-460.0,0.00022739,2]
[370485486,1752040246328,-460.0,0.00022739,2]
[370485488,1752040246337,-1371.06,0.00022739,2]
[370485489,1752040246347,-875.57,0.00022739,2]
[370485490,1752040246356,-344.2368557,0.00022739,2]
[370485491,1752040246383,-162.8831443,0.00022739,2]
[370485492,1752040246392,-955.37,0.00022739,2]
[370485493,1752040246402,-606.93,0.00022739,2]
[370485494,1752040246411,-460.0,0.00022739,2]
[370485495,1752040246420,-1323.68,0.00022739,2]
[370485496,1752040246429,-460.0,0.00022739,2]
[370485497,1752040246439,-228.34113641,0.00022739,2]
[370485498,1752040246448,-1710.39,0.00022739,2]
[370485499,1752040246458,-299.9515348,0.0002274,2]
[370485500,1752040246467,-503.41184876,0.00022757,2]
[370485501,1752040246478,-1000.0,0.00022757,2]
[370485502,1752040246487,-1001.76193686,0.00022757,2]
[370485503,1752040246497,-1200.0,0.00022757,2]
[370485504,1752040246506,-501.59288037,0.00022757,2]
[370485505,1752040246516,-1000.0,0.00022757,2]
[370485506,1752040246527,-500.9883499,0.00022757,2]
[370485507,1752040246536,-501.40803453,0.00022757,2]
[370485508,1752040246546,-151.97867468,0.00022757,2]
[370485509,1752040246556,-1000.0,0.00022757,2]
[370485510,1752040246567,-1000.0,0.00022757,2]
[370485511,1752040246577,-501.88975549,0.00022757,2]
[370485512,1752040246587,-501.60560601,0.00022757,2]
[370485513,1752040246597,-1002.37238666,0.00022757,2]
[370485514,1752040246607,-1000.0,0.00022757,2]
[370485515,1752040246617,-428.6820723,0.00022767,2]
[370485516,1752040246626,-178.06317,0.0002277,4]
[370485517,1752040246636,-501.46158028,0.00022786,2]
[370485518,1752040246646,-504.41091402,0.00022786,2]
[370485519,1752040246655,-501.07989023,0.00022786,2]
[370485520,1752040246665,-500.0,0.00022786,2]
[370485521,1752040246676,-2332.13717277,0.00022797,7]
[370485522,1752040246686,-214.14293035,0.000228,7]
[370485523,1752040246696,-160.0,0.000228,7]
[370485524,1752040246707,-12589.12013084,0.000228,7]
[370485525,1752040246717,-848.55005627,0.000228,7]
[370485526,1752040246727,-2332.13717277,0.00022969,8]
[370485527,1752040246737,-151.0,0.00023,5]
[370485528,1752040246747,-160.0,0.00023,3]
[370485529,1752040246756,-230.53906051,0.00023,3]
[370485530,1752040246766,-1846.05360819,0.00023,2]
[370485531,1752040246776,-215.27775528,0.00023,3]
[370485532,1752040246785,-160.0,0.00023,3]
[370485533,1752040246795,-837.99933892,0.00023,3]
[370485534,1752040246805,-460.0,0.00023013,2]
[370485535,1752040246814,-460.0,0.00023013,2]
[370485536,1752040246824,-1371.06,0.00023013,2]
[370485537,1752040246833,-875.57,0.00023013,2]
[370485538,1752040246843,-507.12,0.00023013,2]
[370485539,1752040246852,-955.37,0.00023013,2]
[370485540,1752040246861,-606.93,0.00023013,2]
[370485541,1752040246871,-460.0,0.00023013,2]
[370485542,1752040246881,-1323.68,0.00023013,2]
[370485543,1752040246890,-460.0,0.00023013,2]
[370485544,1752040246899,-1710.39,0.00023013,2]
[370485545,1752040246908,-392.29438741,0.000231,2]
[370485546,1752040246918,-62808.85,0.000231,7]
[370485547,1752040246927,-160.0,0.000231,7]
[370485548,1752040246937,-71733.14970731,0.00023101,2]
[370485549,1752040246946,-2332.13717277,0.00023141,8]
[370485550,1752040246955,-379.29344207,0.00023188,2]
[370485551,1752040246965,-503.03137355,0.00023281,2]
[370485552,1752040246976,-460.0,0.00023287,2]
[370485553,1752040246985,-460.0,0.00023287,2]
[370485554,1752040246995,-1371.06,0.00023287,2]
[370485555,1752040247004,-875.57,0.00023287,2]
[370485556,1752040247014,-507.12,0.00023287,2]
[370485557,1752040247023,-955.37,0.00023287,2]
[370485558,1752040247032,-606.93,0.00023287,2]
[370485559,1752040247042,-460.0,0.00023287,2]
[370485560,1752040247051,-1323.68,0.00023287,2]
[370485561,1752040247061,-460.0,0.00023287,2]
[370485562,1752040247070,-1710.39,0.00023287,2]
[370485563,1752040247080,-214.551208,0.00023297,4]
[370485564,1752040247089,-509.57661228,0.00023305,2]
[370485565,1752040247099,-1800.0,0.00023305,2]
[370485566,1752040247108,-1500.0,0.00023305,2]
[370485568,1752040247118,-507.09003855,0.00023305,2]
[370485570,1752040247127,-864.21307924,0.00023305,2]
[370485572,1752040247137,-502.91187186,0.00023305,2]
[370485574,1752040247149,-2332.13717277,0.00023314,9]
[370485577,1752040247159,-500.42383133,0.00023334,2]
[370485579,1752040247169,-428.6820723,0.00023397,2]
[370485581,1752040247180,-428.6820723,0.00023397,2]
[370485583,1752040247191,-428.6820723,0.00023397,2]
[370485585,1752040247200,-428.6820723,0.00023397,2]
[370485587,1752040247210,-151.0,0.000234,10]
[370485604,1752040247336,-223.0315306,0.00023415,2]
[370485607,1752040247382,-2332.13717277,0.00023486,9]
[370485609,1752040247394,-168.0,0.0002351,2]
[370485611,1752040247404,-168.0,0.00023551,2]
[370485614,1752040247414,-358.98063244,0.00023561,2]
[370485616,1752040247424,-1435.92252976,0.00023561,2]
[370485618,1752040247433,-3227.59486627,0.00023561,2]
[370485620,1752040247443,-617.4947257,0.00023561,2]
[370485622,1752040247453,-460.0,0.00023561,2]
[370485624,1752040247462,-200.0,0.00023561,2]
[370485626,1752040247474,-200.0,0.00023561,2]
[370485628,1752040247483,-200.0,0.00023561,2]
[370485630,1752040247493,-200.0,0.00023561,2]
[370485632,1752040247503,-200.0,0.00023561,2]
[370485634,1752040247512,-304.53261215,0.00023561,2]
[370485636,1752040247522,-460.0,0.00023561,2]
[370485638,1752040247533,-1371.06,0.00023561,2]
[370485640,1752040247542,-875.57,0.00023561,2]
[370485642,1752040247552,-507.12,0.00023561,2]
[370485644,1752040247562,-955.37,0.00023561,2]
[370485646,1752040247572,-606.93,0.00023561,2]
[370485648,1752040247582,-577.20117806,0.00023561,2]
[370485650,1752040247592,-1323.68,0.00023561,2]
[370485652,1752040247602,-460.0,0.00023561,2]
[370485654,1752040247612,-1710.39,0.00023561,2]
[370485656,1752040247622,-168.0,0.00023637,2]
[370485658,1752040247632,-2332.13717277,0.00023659,9]
[370485660,1752040247642,-169.4978441,0.00023699,2]
[370485662,1752040247652,-3749.98,0.000237,7]
[370485664,1752040247662,-1464.944505,0.000237,2]
[370485666,1752040247672,-168.0,0.00023705,2]
[370485668,1752040247681,-823.0,0.00023766,2]
[370485670,1752040247691,-209.31711733,0.00023799,2]
[370485673,1752040247702,-243310.36925563,0.00023799,7]
[370485675,1752040247712,-151.0,0.00023799,7]
[370485677,1752040247722,-160.573197,0.00023799,7]
[370485678,1752040247732,-160.573197,0.00023799,7]
[370485681,1752040247742,-152.164462,0.00023799,7]
[370485682,1752040247751,-151.0,0.00023799,7]
[370485685,1752040247761,-151.0,0.00023799,7]
[370485687,1752040247771,-151.0,0.00023799,7]
[370485689,1752040247780,-151.0,0.00023799,7]
[370485690,1752040247789,-7977.09,0.000238,7]
[370485692,1752040247799,-42731.27604546,0.000238,2]
[370485703,1752040247888,-28033.10972154,0.000238,2]
[370485705,1752040247900,-3389.45867788,0.000238,2]
[370485794,1752040594645,360.648946,0.00013699,2]
[370485797,1752040952796,1900.0,0.00027397,120]
[370485801,1752041254344,255.9090842,0.00017883,2]
[370485814,1752041432106,-300.0,0.00018314,2]
[370485815,1752041432117,-1181.3507517,0.00018315,2]
[370485816,1752041432163,-535.94791132,0.00018315,2]
[370485817,1752041432282,-1392.56886335,0.00018315,2]
[370485836,1752041438177,-2504.31,0.00018315,2]
[370485837,1752041438189,-1353.1442974,0.00018315,2]
[370485880,1752041440357,-487.01118162,0.00018315,2]
[370485881,1752041440369,-2760.03945047,0.00018315,2]
[370485882,1752041440412,-2364.93270079,0.00018315,2]
[370485883,1752041440423,-679.66133885,0.00018315,2]
[370485884,1752041440435,-541.29166109,0.00018315,2]
[370485949,1752041446040,-11099.74184341,0.00018315,2]
[370485951,1752041446050,-188.2811958,0.00018358,2]
[370485953,1752041446060,-563.13071424,0.000185,4]
[370485955,1752041446070,-1283.7010802,0.0001875,2]
[370485957,1752041446080,-3547.7896853,0.00018789,2]
[370485959,1752041446090,-151.83273191,0.000188,2]
[370485961,1752041446100,-187.15050114,0.000189,2]
[370485963,1752041446110,-460.0,0.00019178,2]
[370485966,1752041446120,-460.0,0.00019178,2]
[370485986,1752041446327,-460.0,0.00019178,2]
[370485988,1752041446338,-460.0,0.00019178,2]
[370485991,1752041446349,-500.0,0.00019178,2]
[370485993,1752041446358,-460.0,0.00019178,2]
[370485995,1752041446368,-460.0,0.00019178,2]
[370485997,1752041446377,-534.25288199,0.00019178,2]
[370485999,1752041446388,-470.69813594,0.00019178,2]
[370486001,1752041446398,-157.13899942,0.00019178,2]
[370486002,1752041446408,-392.67,0.00019178,2]
[370486005,1752041446418,-460.0,0.00019178,2]
[370486007,1752041446428,-460.0,0.00019178,2]
[370486009,1752041446438,-460.0,0.00019178,2]
[370486011,1752041446448,-460.0,0.00019178,2]
[370486012,1752041446458,-460.0,0.00019178,2]
[370486014,1752041446467,-460.0,0.00019178,2]
[370486016,1752041446477,-408.40729688,0.00019178,2]
[370486018,1752041446488,-460.0,0.00019178,2]
[370486020,1752041446497,-460.0,0.00019178,2]
[370486022,1752041446507,-463.56360964,0.00019178,2]
[370486024,1752041446517,-460.0,0.00019178,2]
[370486026,1752041446526,-460.0,0.00019178,2]
[370486028,1752041446535,-460.0,0.00019178,2]
[370486030,1752041446546,-460.0,0.00019178,2]
[370486032,1752041446555,-460.0,0.00019178,2]
[370486034,1752041446564,-460.0,0.00019178,2]
[370486037,1752041446575,-460.0,0.00019178,2]
[370486038,1752041446585,-460.0,0.00019178,2]
[370486041,1752041446595,-460.0,0.00019178,2]
[370486043,1752041446604,-460.0,0.00019178,2]
[370486044,1752041446614,-460.0,0.00019178,2]
[370486046,1752041446623,-651.29,0.00019178,2]
[370486048,1752041446633,-460.0,0.00019178,2]
[370486050,1752041446643,-460.0,0.00019178,2]
[370486052,1752041446652,-460.0,0.00019178,2]
[370486054,1752041446667,-460.0,0.00019178,2]
[370486057,1752041446678,-460.0,0.00019178,2]
[370486059,1752041446693,-460.0,0.00019178,2]
[370486061,1752041446704,-460.0,0.00019178,2]
[370486063,1752041446714,-460.0,0.00019178,2]
[370486065,1752041446724,-460.0,0.00019178,2]
[370486067,1752041446735,-460.0,0.00019178,2]
[370486069,1752041446745,-460.0,0.00019178,2]
[370486071,1752041446754,-460.0,0.00019178,2]
[370486073,1752041446764,-460.0,0.00019178,2]
[370486075,1752041446773,-460.0,0.00019178,2]
[370486077,1752041446782,-859.13,0.00019178,2]
[370486079,1752041446792,-460.0,0.00019178,2]
[370486081,1752041446801,-460.0,0.00019178,2]
[370486083,1752041446811,-586.56264417,0.00019178,2]
[370486084,1752041446823,-460.0,0.00019178,2]
[370486086,1752041446832,-460.0,0.00019178,2]
[370486088,1752041446842,-522.62666314,0.00019178,2]
[370486097,1752041565179,351.206091,0.00013699,2]
[370486102,1752042016901,-152.39683305,0.00018314,2]
[370486103,1752042023637,152.39123545,0.00018129,2]
[370486151,1752042632328,-289.34149704,0.00018313,2]
[370486153,1752042632340,-469.65850296,0.00018313,2]
[370486155,1752042632350,-300.0,0.00018313,2]
[370486157,1752042632360,-300.0,0.00018313,2]
[370486159,1752042632369,-300.0,0.00018313,2]
[370486161,1752042632378,-3333.62166658,0.00018314,2]
[370486163,1752042632391,-8515.17361564,0.00018314,2]
[370486165,1752042632402,-699.79020707,0.00018314,2]
[370486170,1752042632435,-2798.24325071,0.00018314,2]
[370486223,1752042638365,-2313.951988,0.00018314,2]
[370486224,1752042638377,-667.58803514,0.00018314,2]
[370486225,1752042638389,-494.76,0.00018314,2]
[370486226,1752042638401,-1264.75834777,0.00018314,2]
[370486234,1752042640736,-3222.4252085,0.00018314,2]
[370486270,1752042643351,-1437.29084754,0.00018314,2]
[370486272,1752042643361,-252.86229471,0.000189,2]
[370486274,1752042643371,-151.83273189,0.00019078,2]
[370486276,1752042643382,-196.14719371,0.00019178,2]
[370486278,1752042643392,-753.49810557,0.00019178,2]
[370486280,1752042643403,-2208.24934143,0.00019178,2]
[370486282,1752042643413,-460.0,0.00019178,2]
[370486284,1752042643423,-460.0,0.00019178,2]
[370486286,1752042643434,-460.0,0.00019178,2]
[370486288,1752042643444,-460.0,0.00019178,2]
[370486290,1752042643454,-460.0,0.00019178,2]
[370486292,1752042643464,-460.0,0.00019178,2]
[370486294,1752042643474,-460.0,0.00019178,2]
[370486296,1752042643483,-479.80271025,0.00019178,2]
[370486298,1752042643493,-460.0,0.00019178,2]
[370486300,1752042643502,-460.0,0.00019178,2]
[370486302,1752042643511,-460.0,0.00019178,2]
[370486304,1752042643521,-462.18647382,0.00019178,2]
[370486306,1752042643530,-190.0,0.00019178,2]
[370486308,1752042643539,-425.47902398,0.00019178,2]
[370486310,1752042643548,-460.0,0.00019178,2]
[370486311,1752042643559,-462.99805424,0.00019178,2]
[370486312,1752042643568,-460.0,0.00019178,2]
[370486313,1752042643577,-460.0,0.00019178,2]
[370486315,1752042643586,-460.0,0.00019178,2]
[370486316,1752042643595,-460.0,0.00019178,2]
[370486319,1752042643604,-460.0,0.00019178,2]
[370486322,1752042643614,-460.0,0.00019178,2]
[370486324,1752042643622,-460.0,0.00019178,2]
[370486325,1752042643631,-460.0,0.00019178,2]
[370486326,1752042643640,-460.0,0.00019178,2]
[370486327,1752042643650,-460.0,0.00019178,2]
[370486328,1752042643659,-500.0,0.00019178,2]
[370486330,1752042643668,-460.0,0.00019178,2]
[370486332,1752042643677,-460.0,0.00019178,2]
[370486334,1752042643686,-460.0,0.00019178,2]
[370486336,1752042643695,-460.0,0.00019178,2]
[370486338,1752042643706,-462.46276625,0.00019178,2]
[370486340,1752042643715,-460.0,0.00019178,2]
[370486342,1752042643725,-460.0,0.00019178,2]
[370486345,1752042643735,-460.0,0.00019178,2]
[370486347,1752042643744,-465.8235676,0.00019178,2]
[370486349,1752042643753,-467.73674242,0.00019178,2]
[370486351,1752042643763,-460.0,0.00019178,2]
[370486353,1752042643772,-460.0,0.00019178,2]
[370486355,1752042643781,-460.0,0.00019178,2]
[370486356,1752042643790,-460.0,0.00019178,2]
[370486358,1752042643800,-595.51770374,0.00019178,2]
[370486361,1752042643809,-460.0,0.00019178,2]
[370486363,1752042643819,-678.43,0.00019178,2]
[370486365,1752042643828,-463.55202689,0.00019178,2]
[370486366,1752042643837,-608.92471632,0.00019178,2]
[370486368,1752042643847,-464.93412444,0.00019178,2]
[370486369,1752042643856,-254.4389348,0.00019178,2]
[370486370,1752042643869,-205.5610652,0.00019178,2]
[370486371,1752042643879,-460.0,0.00019178,2]
[370486373,1752042643888,-460.0,0.00019178,2]
[370486375,1752042643897,-460.0,0.00019178,2]
[370486377,1752042643906,-83.40913154,0.00019178,2]
[370486378,1752042643918,-376.59086846,0.00019178,2]
[370486380,1752042643927,-232.93678781,0.00019178,2]
[370486404,1752042646266,-229.64478593,0.00019178,2]
[370486406,1752042646277,-460.0,0.00019178,2]
[370486407,1752042646288,-460.0,0.00019178,2]
[370486408,1752042646297,-460.0,0.00019178,2]
[370486409,1752042646307,-460.0,0.00019178,2]
[370486410,1752042646317,-460.0,0.00019178,2]
[370486411,1752042646327,-460.0,0.00019178,2]
[370486412,1752042646338,-460.0,0.00019178,2]
[370486413,1752042646348,-460.0,0.00019178,2]
[370486414,1752042646359,-460.0,0.00019178,2]
[370486415,1752042646369,-460.0,0.00019178,2]
[370486416,1752042646380,-460.0055976,0.00019178,2]
[370486417,1752042646390,-460.0,0.00019178,2]
[370486418,1752042646400,-460.0,0.00019178,2]
[370486419,1752042646410,-460.0,0.00019178,2]
[370486420,1752042646420,-460.0,0.00019178,2]
[370486421,1752042646431,-460.0,0.00019178,2]